Cogmind - Beta 13 @@@ ROGUE MODE // 2024.04.01 @ 18:34:15 Player: Snaylor Result: Destroyed by G-34 Mercenary with Small Laser Performance ------------- Evolutions (1) 500 Regions Visited (2) 400 Robots Destroyed (23) 115 Value Destroyed (709) 709 Prototype IDs (0) 0 Alien Tech Used (0) 0 Bonus (0) 0 TOTAL SCORE: 1724 Bonus ------- None Cogmind --------- Core Integrity 0/400 Matter 465/700 Energy 261/265 System Corruption 2% Temperature Warm (176) Movement Walking (190) Ox1 Location -9/Materials Parts ------- > --- POWER (2) -------- Backup Power I Reinforced Ion Engine > --- PROPULSION (2) --- Aluminum Leg Improved Aluminum Leg > --- UTILITY (2) ------ High-capacity Matter Pod High-capacity Matter Pod > --- WEAPON (3) ------- Backup Laser I Beam Rifle Autogun > --- INVENTORY (5) ---- Aluminum Leg Wheel Datajack Peak State ------------ > --- POWER ------------ Ion Engine Reinforced Ion Engine > --- PROPULSION ------- Aluminum Leg Improved Aluminum Leg > --- UTILITY ---------- High-capacity Matter Pod Sensor Array > --- WEAPON ----------- Autogun Datajack Katana > --- INVENTORY -------- Aluminum Leg Wheel High-capacity Matter Pod [Rating: 14] Favorites ----------- Power Ion Engine Engine Ion Engine Power Core Light Nuclear Core Propulsion Aluminum Leg Leg Aluminum Leg Wheel Wheel Utility High-capacity Matter Pod Device Sensor Array Storage High-capacity Matter Pod Processor Targeting Computer Weapon Katana Energy Gun Beam Rifle Ballistic Gun Light Assault Rifle Ballistic Cannon Light Cannon Launcher Grenade Launcher Slashing Weapon Katana Special Melee Weapon Datajack Build | -11 -10 -9 ------- Run | Yrd Mat Mat Slots Evolved 2 | . . 2 Power 1 | . . 1 Propulsion . | . . . Utility . | . . . Weapon 1 | . . 1 Parts Attached 41 | 6 9 26 Power 12 | 2 3 7 Engine 10 | 2 2 6 Core 2 | . 1 1 Reactor . | . . . Propulsion 9 | 2 2 5 Treads . | . . . Leg 7 | . 2 5 Wheel 2 | 2 . . Hover . | . . . Flight . | . . . Utility 4 | . 2 2 Device 1 | . . 1 Storage 2 | . 1 1 Processor 1 | . 1 . Hackware . | . . . Protection . | . . . Artifact . | . . . Weapon 16 | 2 2 12 Energy Gun 3 | . . 3 Energy Cannon . | . . . Ballistic Gun 6 | 2 1 3 Ballistic Cannon 3 | . 1 2 Launcher 1 | . . 1 Special Weapon . | . . . Impact Weapon . | . . . Slashing Weapon 1 | . . 1 Piercing Weapon . | . . . Special Melee Weapon 2 | . . 2 Unidentified Prototypes . | . . . Parts Lost 16 | . . 16 Power 5 | . . 5 Propulsion 4 | . . 4 Utility 2 | . . 2 Weapon 5 | . . 5 Highest Loss Streak 13 | . . 13 To Critical Strikes . | . . . Average Slot Usage (%) 84 | . 86 84 Engine 16 | . 12 17 Core 1 | . 1 1 Leg 16 | . 5 21 Wheel 6 | . 22 . Device 4 | . . 5 Storage 11 | . 9 11 Processor 4 | . 5 3 Energy Gun 1 | . . 1 Ballistic Gun 11 | . 21 8 Ballistic Cannon 3 | . 6 2 Slashing Weapon 5 | . . 7 Naked Turns . | . . . Heaviest Build 28 | 7 14 28 Greatest Support 23 | 20 20 23 Greatest Overweight (x) 1 | . . 1 Average Overweight (x) . | . . . Largest Inventory Capacity 5 | 5 5 5 Average Capacity 5 | 5 5 5 Most Carried 5 | 5 5 5 Average Carried 3 | 2 4 3 Final Capacity 5 | 5 5 5 Final Carried 5 | 5 4 3 Class Distribution -------------------- 45% | Mutant 41% | Scavenger-Mutant 6% | Gunner 6% | Scavenger-Gunner Dominant Class ---------------- Mutant | -10/Materials Scavenger-Mutant | -9/Materials Resources | -11 -10 -9 ----------- Run | Yrd Mat Mat Matter Collected 975 | 270 266 439 Remotely . | . . . Salvage Created 718 | 43 188 487 Parts 45 | 2 12 31 Haulers Intercepted . | . . . Recyclers Shooed . | . . . Parts Field Recycled . | . . . Retrieved Matter . | . . . Parts Self-Destructed . | . . . Prevented . | . . . Kills | -11 -10 -9 ------- Run | Yrd Mat Mat Combat Hostiles Destroyed 17 | 1 5 11 Melee 2 | . . 2 Guns 11 | 1 3 7 Cannons 4 | . 2 2 Classes Destroyed 8 | 1 . 7 Worker 1 | . . 1 Builder 3 | . . 3 Operator 1 | . . 1 Watcher 1 | . . 1 Grunt 13 | 1 5 7 Brawler 1 | . . 1 Duelist 1 | . . 1 Sentry 2 | . . 2 Best Kill Streak 6 | 1 5 6 Combat Bots Only 5 | 1 5 4 Max Kills in Single Turn 2 | 1 1 2 Gunslinging . | . . . Exploded . | . . . Melee 1 | . . 1 Uniques/NPCs Destroyed . | . . . Combat | -11 -10 -9 -------- Run | Yrd Mat Mat Hostile Shots Fired 186 | 6 19 161 Missed 46 | 2 5 39 Damage Taken 1979 | 44 171 1764 Core 481 | . 76 405 Absorbed by Shields . | . . . Regen/Repaired (Parts) 43 | . 7 36 Core Remaining (%) 84 | 100 69 . Volleys Fired 57 | 5 14 38 Largest 3 | 2 2 3 Hottest 109 | 40 55 109 Shots Fired 103 | 10 28 65 Gun 77 | 10 16 51 Cannon 22 | . 12 10 Launcher 4 | . . 4 Special . | . . . Kinetic 83 | 10 28 45 Thermal 16 | . . 16 Explosive 4 | . . 4 Electromagnetic . | . . . Robot Hit Streak 10 | 10 9 7 Robot Miss Streak 3 | . 3 2 Penetration Max . | . . . Secondary Targets 1 | . . 1 Max Gunslinging Chain 1 | . . 1 Shots Hit Robots 83 | 10 18 55 Core Hits 42 | 2 9 31 Critical Kills . | . . . Critical Parts Destroyed . | . . . Critical Strikes . | . . . Melee Attacks 10 | . . 10 Impact . | . . . Slashing 9 | . . 9 Piercing . | . . . Sneak Attacks . | . . . Combat Hostiles . | . . . Follow-up Attacks . | . . . Damage Inflicted 1626 | 87 250 1289 Guns 663 | 87 133 443 Cannons 234 | . 117 117 Explosions 523 | . . 523 Melee 206 | . . 206 Ramming . | . . . Kinetic 737 | 87 250 400 Thermal 160 | . . 160 Explosive 523 | . . 523 Electromagnetic . | . . . Impact . | . . . Slashing 206 | . . 206 Piercing . | . . . Highest Corruption 2 | . . 2 Average Corruption 2 | . . 2 Corruption Purged . | . . . Corruption Blocked . | . . . Effects 3 | . . 3 Matter Fused 2 | . . 2 Energy Discharges 1 | . . 1 Overload Shots . | . . . Overflow Damage 107 | . . 107 Projectiles . | . . . Explosions 105 | . . 105 Melee 2 | . . 2 Knockbacks 2 | . 1 1 Impact . | . . . Kinetic 2 | . 1 1 Secondary . | . . . Self-Inflicted Damage 136 | . . 136 Shots 4 | . . 4 Rammed . | . . . Targets Rammed . | . . . Kicked . | . . . Crushed . | . . . Highest Temperature 170 | 6 24 170 Average Temperature 37 | 6 9 49 Received Heat Transfer 765 | 24 93 648 Siege Activations . | . . . Robots Corrupted . | . . . Combat Hostiles . | . . . Parts Fried . | . . . Impact Corruptions . | . . . Robots Melted . | . . . Combat Hostiles . | . . . Parts Melted . | . . . Heat Transferred 410 | . . 410 Parts Sabotaged . | . . . Parts Stolen . | . . . Parts Stripped . | . . . Power Chain Reactions . | . . . Alert | -11 -10 -9 ------- Run | Yrd Mat Mat Peak Influence 184 | 20 170 184 Initial 71 | . 13 71 Average 85 | 2 66 102 Maximum Alert Level . | . . . Low Security (%) 100 | 100 100 100 Level 1 . | . . . Level 2 . | . . . Level 3 . | . . . Level 4 . | . . . Level 5 . | . . . High Security . | . . . Max Security . | . . . Squads Dispatched 5 | . 2 3 Investigation 2 | . 1 1 Extermination . | . . . Reinforcement 3 | . 1 2 Assault . | . . . Garrison . | . . . Intercept . | . . . Searches Triggered . | . . . Construction Impeded 1 | . . 1 Haulers Reinforced . | . . . Active Scanning Responses . | . . . Cargo Convoy Interrupts . | . . . Stealth | -11 -10 -9 --------- Run | Yrd Mat Mat Distress Signals . | . . . Communications Jammed . | . . . Distress Signals . | . . . Times Spotted 29 | 1 10 18 Peak Tracking Total 6 | 1 6 5 Tactical Retreats 2 | . 1 1 Traps | -11 -10 -9 ------- Run | Yrd Mat Mat Traps Triggered . | . . . Indirectly . | . . . Trap Hack Attempts . | . . . Triggered . | . . . Disarmed . | . . . Reprogrammed . | . . . Reused . | . . . Traps Extracted . | . . . Installed . | . . . Triggered . | . . . Machines | -11 -10 -9 ---------- Run | Yrd Mat Mat Machines Disabled 2 | . . 2 Max in Single Turn 1 | . . 1 Machines Repaired . | . . . Machines Dismantled . | . . . Machines Sabotaged . | . . . Overloaded Fab Kills . | . . . Hacking | -11 -10 -9 --------- Run | Yrd Mat Mat Machines Accessed 7 | . 4 3 Terminals 4 | . 2 2 Fabricators . | . . . Repair Stations 2 | . 1 1 Recycling Units 1 | . 1 . Scanalyzers . | . . . Garrison Access . | . . . Total Hacks 19 | . 11 8 Successful 12 | . 7 5 Failed 7 | . 4 3 Catastrophic . | . . . Database Lockouts . | . . . Manual . | . . . Terminals 11 | . 6 5 Fabricators . | . . . Repair Stations 6 | . 3 3 Recycling Units 2 | . 2 . Scanalyzers . | . . . Garrison Access . | . . . Terminal Hacks 6 | . 3 3 Record 4 | . 3 1 Alert Level 2 | . . 2 Fabricator Hacks . | . . . Repair Station Hacks 4 | . 2 2 Scan Component 2 | . 1 1 Repair 2 | . 1 1 Recycling Unit Hacks 2 | . 2 . Recycle Component 1 | . 1 . Process 1 | . 1 . Scanalyzer . | . . . Garrison Access Hacks . | . . . Unauthorized Hacks . | . . . Terminals . | . . . Fabricators . | . . . Repair Stations . | . . . Recycling Units . | . . . Scanalyzers . | . . . Garrison Access . | . . . Data Cores Recovered 1 | . . 1 Used . | . . . Hacking Detections 5 | . 3 2 Full Trace Events 2 | . 1 1 Feedback Events . | . . . Feedback Blocked . | . . . Robot Schematics Acquired . | . . . Robots Built . | . . . Authchips . | . . . Time . | . . . Total Robot Build Rating . | . . . Part Schematics Acquired . | . . . Parts Built . | . . . Authchips . | . . . Time . | . . . Total Part Build Rating . | . . . Parts Repaired 2 | . 1 1 Time 52 | . 26 26 Parts Recycled 1 | . 1 . Recycled Matter 36 | . 36 . Retrieved Matter . | . . . Retrieved Components . | . . . Parts Scanalyzed . | . . . Part Schematics Acquired . | . . . Parts Damaged . | . . . Bothacking | -11 -10 -9 ------------ Run | Yrd Mat Mat Used RIF Installer . | . . . Robots Hacked 1 | . . 1 Non-combat . | . . . Combat 1 | . . 1 Robot Hacks Applied 1 | . . 1 parse_system 1 | . . 1 Relay Couplers Released . | . . . Fabnet Peak Effective % . | . . . Robots Rewired . | . . . Allies Hacked . | . . . Hacks Repelled . | . . . Allies | -11 -10 -9 -------- Run | Yrd Mat Mat Total Allies . | . . . Largest Group . | . . . Highest-Rated Group . | . . . Highest-Rated Ally . | . . . Total Orders . | . . . Ally Attacks . | . . . Total Damage . | . . . Kills . | . . . Allies Corrupted . | . . . Allies Melted . | . . . Intel | -11 -10 -9 ------- Run | Yrd Mat Mat Robot Analysis Total . | . . . Derelict Logs Recovered . | . . . Drone Launches . | . . . Drone Recoveries . | . . . Exploration | -11 -10 -9 ------------- Run | Yrd Mat Mat Turns Passed 1003 | 86 246 671 Spaces Moved 603 | 79 214 310 Core 22 | 22 . . Treads . | . . . Legs 342 | . 32 310 Wheels 239 | 57 182 . Hover . | . . . Flight . | . . . Fastest Speed 50 | 50 80 120 Average Speed 115 | 71 85 146 Slowest Speed 190 | 80 120 190 Overloaded Moves . | . . . Propulsion Burnouts . | . . . Robots Hopped . | . . . Cave-ins Triggered . | . . . Exploration Rate (%) 20 | 8 29 24 Regions Visited 2 Branch Regions . Pre-discovered Areas . | . . . Known Exits Taken . | . . . Unknown Exits Taken 2 | 1 1 . Scrap Searched . | . . . Spaces Dug . | . . . Terrain Destroyed 27 | . . 27 Melee . | . . . Projectile . | . . . AOE 27 | . . 27 Terrain Rammed . | . . . Walls Destroyed . | . . . Machines Disabled . | . . . Actions | -11 -10 -9 --------- Run | Yrd Mat Mat Total 806 | 99 247 460 Wait 56 | . 2 54 Move 601 | 78 213 310 Hop . | . . . Pick Up 35 | 10 5 20 Fast Attach 1 | . 1 . Attach 28 | 5 2 21 Detach 1 | . . 1 Swap 12 | 1 6 5 Drop 5 | . 4 1 Fire 57 | 5 14 38 Melee 10 | . . 10 Ram . | . . . Kick . | . . . Crush . | . . . Escape Stasis . | . . . Rewire . | . . . Trap . | . . . Miscellaneous . | . . . Route ------- -11/Scrapyard -10/Materials -9/Materials History --------- Turn | Location | Event 2 | -11/Scrapyard | Met Revision 17 59 | -11/Scrapyard | Discovered new exit (range 8) 87 | -11/Scrapyard | Entered Materials 256 | -10/Materials | Repaired Ion Engine 278 | -10/Materials | Discovered new exit (range 10) 326 | -10/Materials | Build established: Mutant 333 | -10/Materials | Entered another Materials area 333 | -9/Materials | Evolved 2 slots: Power x1, Weapon x1 504 | -9/Materials | Core integrity fell below 50% 560 | -9/Materials | Core integrity fell below 20% 598 | -9/Materials | Lost 13 parts (4p4n1u4w) 839 | -9/Materials | Build established: Scavenger-Mutant 897 | -9/Materials | Repaired Ion Engine 972 | -9/Materials | Lost 3 parts (1p1u1w) 1004 | -9/Materials | Destroyed by G-34 Mercenary with Small Laser Last Messages --------------- Acquired 8 matter. Acquired Backup Power I. Acquired Backup Laser I. R-06 Scavenger collects Wheel. The unstable cave ceiling collapses. Dropped Katana. R-06 Scavenger collects Katana. R-06 Scavenger collects Terrain Scanner. U-05 Engineer builds a Wall. M-13 Machinist fits Backup Propulsion I on U-05 Engineer. U-05 Engineer builds a Wall. U-05 Engineer lays Concrete. T-07 Excavator destroyed. U-05 Engineer lays Concrete. U-05 Engineer builds a Wall. ALERT: Hostiles spotted, dispatching reinforcements to Terminal M009. G-47 Trooper destroyed. Switching to secondary target: G-34 Mercenary. Map ----- +----------------------------------------------------+ | | | | | | | | | | | | | ?????????????????????????????????????????????????? | | ?????????????????????????????????????????????????? | | ?????????????????????????????????????????????????? | | ?????????????????????????????????????????????????? | | ?????????????????????????????????????????????????? | | ????????????????????#######??????????????????????? | | ???????????????????? #??????????????????????? | | ????????????????????? #??????????????????????? | | ????????????????????? g #??????????????????????? | | ?????????????######### #??????????????????????? | | ????????#????# """ #??????????????????????? | | ????????# ??# #??????????????????????? | | ????????# # = #########??????????????? | | ????????+ # ??????????????? | | ????????# [ ! # ???????????????? | | ????????# #*% # ????????????????? | | ????????# #u # """ ???????????????? | | ????????# # # """""???????????????? | | ????????###### # # """"" ??????????????? | | ?????????????# # # # @/ """"" #?????????????? | | ?????????????### # ## # """ #?????????????? | | ???????????????### #### # #?????????????? | | ?????????????????# #??# g%##########?????????????? | | ????????????###### #?# g[ ??????????????????????? | | ??????#??""" ## #?# ?????????????????????? | | ??????# """"" ## #?# ????????????????????? | | ??????# """"" ## #?# ???????????????????? | | ??????# """"" ## #?# ####??????????????????? | | ??????# """ ## #?#######?????????????????????? | | ??????# ## #?????????????????????????????? | | ??????# ## #?????????????????????????????? | | ??????#! ! ## #?????????????????????????????? | | ??????#####+###### #?????????????????????????????? | | ????# #### #?????????????????????????????? | | ????# #######?????????????????????????????? | | ????###### #???????????????????????????????????? | | ?????????+ #???????????????????????????????????? | | ?????????# #######?????????????????????????????? | | ?????????# # #?????????????????????????????? | | ?????????# # #?????????????????????????????? | | ?????????# # #?????????????????????????????? | | ?????????# # #?????????????????????????????? | | ?????????# # #?????????????????????????????? | | ?????????# + #?????????????????????????????? | +----------------------------------------------------+ Best States ------------- Heat Dissipation 28 Energy Generation 19 Energy Capacity 415 Matter Stores 500 Matter Capacity 700 Sight Range 16 Robot Scan Range 14 Terrain Scan Density 10 Evasion (%) 55 Targeting Accuracy 5 Item Schematics ----------------- None Robot Schematics ------------------ None Fabricated ------------ Nothing Alien Tech Used ----------------- None Achievements -------------- Crack Shot Challenges ------------ None Game ------ Seed LightSegregatorRouter Manual? 0 Play Time 00:25:52 Cumulative 1.2 hours Start 2024.04.01 @ 18:09:12 End 2024.04.01 @ 18:34:15 Sessions 1 Manual Loads 0 Difficulty Rogue Special Mode None Game No. 2 Rogue 2 Adventurer 0 Explorer 0 Win Type - Total 0 Types 0/0/0/0/0/0/0/0/0 Lore% 0 Gallery% 3 Achievement% 2 Wizard Run 0 Options --------- Layout 1 ASCII 0 Keyboard 0 Movement Mouse Keybinds 0 Fullscreen 1 Font 24/Smallcaps Map View 50x35 Zoom Use 0% Tactical HUD 0 Map Filters NONE Filters NONE Steam 1 RUN: 18a534ae-e194-4786-8388-a64d7b8f8c10